fUSD/lending_fUSD_20241122
["ID","MTS","AMOUNT","RATE_DAILY","PERIOD"]
[343021233,1732288295334,-637.48,0.00094989,120]
[343021234,1732288295344,-500.0,0.00094989,120]
[343021235,1732288295353,-637.48,0.00094989,120]
[343021236,1732288295363,-500.0,0.00094989,120]
[343021237,1732288295374,-637.62405526,0.00094989,120]
[343021238,1732288295383,-500.0,0.00094989,120]
[343021239,1732288295396,-227.48437241,0.00094989,120]
[343021240,1732288295406,-500.0,0.00094989,120]
[343021241,1732288295416,-500.0,0.00094989,120]
[343021242,1732288295426,-224.62,0.00094989,120]
[343021243,1732288295436,-500.0,0.00094989,120]
[343021244,1732288295445,-292.9,0.00094989,120]
[343021245,1732288295455,-500.0,0.00094989,120]
[343021246,1732288295465,-500.0,0.00094989,120]
[343021247,1732288295474,-500.0,0.00094989,120]
[343021248,1732288295483,-389.48287407,0.00094989,120]
[343021249,1732288295493,-500.0,0.00094989,120]
[343021250,1732288295502,-500.0,0.00094989,120]
[343021251,1732288295512,-500.0,0.00094989,120]
[343021252,1732288295521,-500.0,0.00094989,120]
[343021253,1732288295531,-500.0,0.00094989,120]
[343021254,1732288295540,-500.0,0.00094989,120]
[343021255,1732288295549,-500.0,0.00094989,120]
[343021256,1732288295559,-500.0,0.00094989,120]
[343021257,1732288295568,-500.0,0.00094989,120]
[343021258,1732288295578,-319.47775,0.00094989,120]
[343021259,1732288295588,-500.0,0.00094989,120]
[343021260,1732288295597,-500.0,0.00094989,120]
[343021261,1732288295607,-336.0,0.00094989,120]
[343021262,1732288295616,-537.18,0.00094989,120]
[343021263,1732288295626,-537.18,0.00094989,120]
[343021264,1732288295635,-537.18,0.00094989,120]
[343021265,1732288295649,-537.18,0.00094989,120]
[343021266,1732288295658,-537.18,0.00094989,120]
[343021267,1732288295667,-537.18,0.00094989,120]
[343021268,1732288295677,-537.18,0.00094989,120]
[343021269,1732288295686,-537.18,0.00094989,120]
[343021270,1732288295695,-537.18,0.00094989,120]
[343021271,1732288295705,-537.21340537,0.00094989,120]
[343021272,1732288295715,-426.72,0.00094989,120]
[343021273,1732288295725,-500.0,0.00094989,120]
[343021274,1732288295735,-394.09343609,0.00094989,120]
[343021275,1732288295744,-500.0,0.00094989,120]
[343021276,1732288295754,-194.2,0.00094989,120]
[343021277,1732288295764,-500.0,0.00094989,20]
[343021278,1732288295774,-404.32,0.00094989,120]
[343021279,1732288295783,-530.22,0.00094989,120]
[343021280,1732288295792,-500.0,0.00094989,120]
[343021281,1732288295802,-500.0,0.00094989,120]
[343021282,1732288295811,-500.0,0.00094989,120]
[343021283,1732288295821,-500.0,0.00094989,120]
[343021284,1732288295831,-500.0,0.00094989,120]
[343021285,1732288295841,-500.0,0.00094989,120]
[343021286,1732288295850,-500.0,0.00094989,120]
[343021287,1732288295860,-551.7423042,0.00094989,120]
[343021288,1732288295869,-500.0,0.00094989,120]
[343021289,1732288295878,-500.0,0.00094989,120]
[343021290,1732288295887,-390.57,0.00094989,120]
[343021291,1732288295900,-500.0,0.00094989,120]
[343021292,1732288295910,-500.0,0.00094989,120]
[343021293,1732288295919,-500.0,0.00094989,120]
[343021294,1732288295929,-500.0,0.00094989,120]
[343021295,1732288295939,-500.0,0.00094989,120]
[343021296,1732288295948,-630.15,0.00094989,120]
[343021297,1732288295957,-630.15,0.00094989,120]
[343021298,1732288295967,-630.15,0.00094989,120]
[343021299,1732288295976,-1109.539819,0.00094989,120]
[343021300,1732288295985,-1109.539819,0.00094989,120]
[343021301,1732288295994,-500.0,0.00094989,120]
[343021302,1732288296004,-500.0,0.00094989,120]
[343021303,1732288296013,-500.0,0.00094989,120]
[343021304,1732288296024,-500.0,0.00094989,120]
[343021305,1732288296034,-500.0,0.00094989,120]
[343021306,1732288296043,-500.0,0.00094989,120]
[343021307,1732288296053,-150.0,0.00094989,120]
[343021308,1732288296063,-150.0,0.00094989,120]
[343021309,1732288296073,-500.0,0.00094989,120]
[343021310,1732288296083,-500.0,0.00094989,120]
[343021311,1732288296092,-500.0,0.00094989,120]
[343021312,1732288296102,-500.0,0.00094989,120]
[343021313,1732288296111,-500.0,0.00094989,120]
[343021314,1732288296121,-500.0,0.00094989,120]
[343021315,1732288296131,-500.0,0.00094989,120]
[343021316,1732288296145,-522.32,0.00094989,120]
[343021317,1732288296155,-666.12,0.00094989,120]
[343021318,1732288296165,-500.0,0.00094989,120]
[343021319,1732288296175,-500.0,0.00094989,120]
[343021320,1732288296185,-543.85,0.00094989,120]
[343021321,1732288296195,-151.0,0.00094989,120]
[343021322,1732288296204,-500.0,0.00094989,120]
[343021323,1732288296214,-500.0,0.00094989,120]
[343021324,1732288296224,-872.33,0.00094989,120]
[343021325,1732288296235,-872.33,0.00094989,120]
[343021326,1732288296244,-872.33,0.00094989,120]
[343021327,1732288296254,-872.33,0.00094989,120]
[343021328,1732288296264,-872.33,0.00094989,120]
[343021329,1732288296273,-872.33,0.00094989,120]
[343021330,1732288296283,-872.33,0.00094989,120]
[343021331,1732288296292,-872.33,0.00094989,120]
[343021332,1732288296302,-872.33,0.00094989,120]
[343021333,1732288296311,-872.33943787,0.00094989,120]
[343021334,1732288296321,-500.0,0.00094989,120]
[343021335,1732288296331,-447.28894279,0.00094989,120]
[343021336,1732288296340,-500.0,0.00094989,120]
[343021337,1732288296350,-507.31,0.00094989,120]
[343021338,1732288296359,-500.0,0.00094989,120]
[343021339,1732288296368,-500.0,0.00094989,120]
[343021340,1732288296378,-500.0,0.00094989,120]
[343021341,1732288296387,-500.0,0.00094989,120]
[343021342,1732288296401,-500.0,0.00094989,120]
[343021343,1732288296411,-500.0,0.00094989,120]
[343021344,1732288296421,-500.0,0.00094989,120]
[343021345,1732288296430,-500.0,0.00094989,120]
[343021346,1732288296439,-500.0,0.00094989,120]
[343021347,1732288296449,-500.0,0.00094989,120]
[343021348,1732288296458,-289.96211416,0.00094989,120]
[343021349,1732288296468,-500.0,0.00094989,120]
[343021350,1732288296477,-500.0,0.00094989,120]
[343021351,1732288296487,-500.0,0.00094989,120]
[343021352,1732288296496,-500.0,0.00094989,120]
[343021353,1732288296505,-500.0,0.00094989,120]
[343021354,1732288296515,-500.0,0.00094989,120]
[343021355,1732288296524,-847.2,0.00094989,120]
[343021356,1732288296534,-847.2,0.00094989,120]
[343021357,1732288296543,-847.2,0.00094989,120]
[343021358,1732288296553,-847.2,0.00094989,120]
[343021359,1732288296562,-847.2,0.00094989,120]
[343021360,1732288296572,-847.2,0.00094989,120]
[343021361,1732288296581,-847.2,0.00094989,120]
[343021362,1732288296591,-500.0,0.00094989,120]
[343021363,1732288296600,-500.0,0.00094989,120]
[343021364,1732288296609,-500.0,0.00094989,120]
[343021365,1732288296619,-500.0,0.00094989,120]
[343021366,1732288296628,-500.0,0.00094989,120]
[343021367,1732288296638,-500.0,0.00094989,120]
[343021368,1732288296651,-592.93664609,0.00094989,120]
[343021369,1732288296660,-621.36,0.00094989,120]
[343021370,1732288296669,-547.40389901,0.00094989,120]
[343021371,1732288296679,-621.36,0.00094989,120]
[343021372,1732288296688,-621.36,0.00094989,120]
[343021373,1732288296698,-621.36,0.00094989,120]
[343021374,1732288296707,-621.36,0.00094989,120]
[343021375,1732288296716,-621.36,0.00094989,120]
[343021376,1732288296726,-621.36,0.00094989,120]
[343021377,1732288296846,-500.0,0.00094989,120]
[343021378,1732288296856,-500.0,0.00094989,120]
[343021379,1732288296866,-605.05,0.00094989,120]
[343021380,1732288296875,-500.0,0.00094989,120]
[343021381,1732288296885,-605.05,0.00094989,120]
[343021382,1732288296898,-605.05,0.00094989,120]
[343021383,1732288296908,-605.05,0.00094989,120]
[343021384,1732288296918,-605.05,0.00094989,120]
[343021385,1732288296928,-605.05,0.00094989,120]
[343021386,1732288296938,-500.0,0.00094989,120]
[343021387,1732288296947,-605.17,0.00094989,120]
[343021388,1732288296957,-500.0,0.00094989,120]
[343021389,1732288296967,-198.78,0.00094989,120]
[343021390,1732288296977,-500.0,0.00094989,120]
[343021391,1732288296986,-500.0,0.00094989,120]
[343021392,1732288296996,-500.0,0.00094989,120]
[343021393,1732288297006,-500.0,0.00094989,120]
[343021394,1732288297015,-500.0,0.00094989,120]
[343021395,1732288297027,-500.0,0.00094989,120]
[343021396,1732288297038,-500.0,0.00094989,120]
[343021397,1732288297049,-500.0,0.00094989,120]
[343021398,1732288297059,-500.0,0.00094989,120]
[343021399,1732288297068,-500.0,0.00094989,120]
[343021400,1732288297079,-500.0,0.00094989,120]
[343021401,1732288297088,-500.0,0.00094989,120]
[343021402,1732288297098,-500.0,0.00094989,120]
[343021403,1732288297109,-500.0,0.00094989,120]
[343021404,1732288297119,-500.0,0.00094989,120]
[343021405,1732288297129,-500.0,0.00094989,120]
[343021406,1732288297140,-500.0,0.00094989,120]
[343021407,1732288297152,-500.0,0.00094989,120]
[343021408,1732288297162,-500.0,0.00094989,120]
[343021409,1732288297172,-500.0,0.00094989,120]
[343021410,1732288297182,-188.07054361,0.00094989,120]
[343021411,1732288297192,-500.0,0.00094989,120]
[343021412,1732288297202,-500.0,0.00094989,120]
[343021413,1732288297212,-523.48,0.00094989,120]
[343021414,1732288297222,-523.48,0.00094989,120]
[343021415,1732288297231,-523.48,0.00094989,120]
[343021416,1732288297241,-523.48,0.00094989,120]
[343021417,1732288297251,-523.48,0.00094989,120]
[343021418,1732288297260,-523.48,0.00094989,120]
[343021419,1732288297270,-523.48,0.00094989,120]
[343021420,1732288297279,-557.050427,0.00094989,120]
[343021421,1732288297289,-500.0,0.00094989,120]
[343021422,1732288297299,-500.0,0.00094989,120]
[343021423,1732288297309,-500.0,0.00094989,120]
[343021424,1732288297319,-557.050427,0.00094989,120]
[343021425,1732288297329,-500.0,0.00094989,120]
[343021426,1732288297339,-266.82,0.00094989,120]
[343021427,1732288297349,-503.51,0.00094989,120]
[343021428,1732288297359,-596.45,0.00094989,120]
[343021429,1732288297368,-500.0,0.00094989,120]
[343021430,1732288297379,-500.0,0.00094989,120]
[343021431,1732288297388,-500.0,0.00094989,120]
[343021432,1732288297405,-500.0,0.00094989,120]
[343021433,1732288297415,-500.0,0.00094989,120]
[343021434,1732288297425,-524.3,0.00094989,120]
[343021435,1732288297435,-500.0,0.00094989,120]
[343021436,1732288297445,-500.0,0.00094989,120]
[343021437,1732288297455,-500.0,0.00094989,120]
[343021438,1732288297464,-1118.107939,0.00094989,120]
[343021439,1732288297474,-500.0,0.00094989,120]
[343021440,1732288297483,-190.04,0.00094989,120]
[343021441,1732288297492,-1118.107939,0.00094989,120]
[343021442,1732288297502,-500.0,0.00094989,120]
[343021443,1732288297511,-500.0,0.00094989,120]
[343021444,1732288297520,-500.0,0.00094989,120]
[343021445,1732288297530,-500.0,0.00094989,120]
[343021446,1732288297539,-500.0,0.00094989,120]
[343021447,1732288297549,-500.0,0.00094989,120]
[343021448,1732288297559,-1168.69,0.00094989,2]
[343021449,1732288297568,-500.0,0.00094989,120]
[343021450,1732288297577,-1168.69,0.00094989,2]
[343021451,1732288297587,-1168.69,0.00094989,2]
[343021452,1732288297596,-1168.69,0.00094989,2]
[343021453,1732288297605,-1168.69,0.00094989,2]
[343021454,1732288297615,-1168.69,0.00094989,2]
[343021455,1732288297624,-1168.69,0.00094989,2]
[343021456,1732288297634,-1168.69,0.00094989,2]
[343021457,1732288297648,-1168.69,0.00094989,2]
[343021458,1732288297657,-1168.82467854,0.00094989,2]
[343021459,1732288297667,-500.0,0.00094989,120]
[343021460,1732288297677,-500.0,0.00094989,120]
[343021461,1732288297687,-500.0,0.00094989,120]
[343021462,1732288297696,-500.0,0.00094989,120]
[343021463,1732288297705,-467.91373786,0.00094989,120]
[343021464,1732288297715,-500.0,0.00094989,120]
[343021465,1732288297725,-500.0,0.00094989,120]
[343021466,1732288297734,-500.0,0.00094989,120]
[343021467,1732288297743,-3483.61,0.00094989,120]
[343021468,1732288297753,-3483.61,0.00094989,120]
[343021469,1732288297762,-502.01051198,0.00094989,120]
[343021470,1732288297772,-3483.61,0.00094989,120]
[343021471,1732288297781,-3483.61,0.00094989,120]
[343021472,1732288297791,-3483.61,0.00094989,120]
[343021473,1732288297800,-3483.61,0.00094989,120]
[343021474,1732288297809,-3483.61,0.00094989,120]
[343021475,1732288297819,-3483.61,0.00094989,120]
[343021476,1732288297827,-3483.61,0.00094989,120]
[343021477,1732288297837,-3483.62,0.00094989,120]
[343021478,1732288297846,-500.0,0.00094989,120]
[343021479,1732288297855,-500.0,0.00094989,120]
[343021480,1732288297864,-190.41096442,0.00094989,120]
[343021481,1732288297873,-500.0,0.00094989,120]
[343021482,1732288297883,-500.0,0.00094989,120]
[343021483,1732288297895,-500.0,0.00094989,120]
[343021484,1732288297904,-500.0,0.00094989,120]
[343021485,1732288297914,-338.66550885,0.00094989,120]
[343021486,1732288297923,-500.0,0.00094989,120]
[343021487,1732288297933,-500.0,0.00094989,120]
[343021488,1732288297942,-256.46793501,0.00094989,120]
[343021489,1732288297952,-500.0,0.00094989,120]
[343021490,1732288297962,-500.0,0.00094989,120]
[343021491,1732288297971,-500.0,0.00094989,120]
[343021492,1732288297980,-1342780.0,0.0009499,120]
[343021493,1732288297990,-151.0,0.0009499,120]
[343021494,1732288297999,-301.153285,0.0009499,120]
[343021495,1732288298009,-1109.539819,0.0009499,120]
[343021496,1732288298018,-1109.539819,0.0009499,120]
[343021497,1732288298032,-179.244322,0.0009499,120]
[343021498,1732288298042,-557.050427,0.0009499,120]
[343021499,1732288298051,-557.050429,0.0009499,120]
[343021500,1732288298060,-1118.107939,0.0009499,120]
[343021501,1732288298070,-1118.107941,0.0009499,120]
[343021502,1732288298080,-179.979426,0.0009499,120]
[343021503,1732288298089,-179.979426,0.0009499,120]
[343021504,1732288298100,-500.0,0.00094998,120]
[343021505,1732288298109,-500.0,0.00094998,120]
[343021506,1732288298119,-446.74792157,0.00094998,120]
[343021507,1732288298128,-500.0,0.00094998,20]
[343021508,1732288298138,-530.22,0.00094998,120]
[343021509,1732288298155,-500.0,0.00094998,120]
[343021510,1732288298165,-666.12,0.00094998,120]
[343021511,1732288298175,-847.2,0.00094998,120]
[343021512,1732288298186,-847.2,0.00094998,120]
[343021513,1732288298196,-847.2,0.00094998,120]
[343021514,1732288298209,-847.2,0.00094998,120]
[343021515,1732288298220,-847.32,0.00094998,120]
[343021516,1732288298231,-621.36,0.00094998,120]
[343021517,1732288298242,-621.36,0.00094998,120]
[343021518,1732288298252,-621.36,0.00094998,120]
[343021519,1732288298263,-621.36,0.00094998,120]
[343021520,1732288298273,-621.59683839,0.00094998,120]
[343021521,1732288298284,-500.0,0.00094998,120]
[343021522,1732288298295,-523.48,0.00094998,120]
[343021523,1732288298305,-523.48,0.00094998,120]
[343021524,1732288298315,-523.48,0.00094998,120]
[343021525,1732288298324,-523.48,0.00094998,120]
[343021526,1732288298334,-523.67227282,0.00094998,120]
[343021527,1732288298344,-187.19406056,0.00094999,120]
[343021528,1732288298354,-500.0,0.00094999,120]
[343021529,1732288298364,-500.0,0.00094999,120]
[343021530,1732288298373,-500.0,0.00094999,120]
[343021531,1732288298383,-500.0,0.00094999,120]
[343021532,1732288298400,-605.5241229,0.00094999,120]
[343021533,1732288298409,-500.0,0.00094999,120]
[343021534,1732288298419,-500.0,0.00094999,120]
[343021535,1732288298428,-504.44,0.00094999,120]
[343021536,1732288298438,-500.0,0.00094999,120]
[343021537,1732288298447,-298.03169611,0.00094999,120]
[343021538,1732288298457,-500.0,0.00094999,120]
[343021539,1732288298467,-565.76,0.00094999,120]
[343021540,1732288298476,-500.0,0.00094999,120]
[343021541,1732288298486,-500.0,0.00094999,120]
[343021542,1732288298495,-500.0,0.00094999,120]
[343021543,1732288298505,-576.66,0.00094999,120]
[343021544,1732288298515,-500.0,0.00094999,120]
[343021545,1732288298525,-500.0,0.00094999,120]
[343021546,1732288298539,-500.0,0.00094999,120]
[343021547,1732288298549,-500.0,0.00094999,120]
[343021548,1732288298559,-500.0,0.00094999,120]
[343021549,1732288298568,-500.0,0.00094999,20]
[343021550,1732288298578,-530.22,0.00094999,120]
[343021551,1732288298587,-500.0,0.00094999,120]
[343021552,1732288298596,-630.15,0.00094999,120]
[343021553,1732288298605,-500.0,0.00094999,120]
[343021554,1732288298615,-500.0,0.00094999,120]
[343021555,1732288298624,-666.12,0.00094999,120]
[343021556,1732288298634,-500.0,0.00094999,120]
[343021557,1732288298648,-500.0,0.00094999,120]
[343021558,1732288298658,-500.0,0.00094999,120]
[343021559,1732288298667,-500.0,0.00094999,120]
[343021560,1732288298676,-500.0,0.00094999,120]
[343021561,1732288298686,-500.0,0.00094999,120]
[343021562,1732288298696,-500.0,0.00094999,120]
[343021563,1732288298706,-500.0,0.00094999,120]
[343021564,1732288298715,-500.0,0.00094999,120]
[343021565,1732288298725,-500.0,0.00094999,120]
[343021566,1732288298734,-500.0,0.00094999,120]
[343021567,1732288298744,-500.0,0.00094999,120]
[343021568,1732288298753,-500.0,0.00094999,120]
[343021569,1732288298762,-500.0,0.00094999,120]
[343021570,1732288298771,-50000.0,0.00095,75]
[343021571,1732288298781,-312124.86478147,0.00095,120]
[343021572,1732288298790,-2624.36527743,0.00095,30]
[343021573,1732288298799,-2250.0,0.00095,120]
[343021574,1732288298808,-1018.0,0.00095,120]
[343021575,1732288298818,-3000.0,0.00095,120]
[343021576,1732288298827,-1109.539819,0.00095,120]
[343021577,1732288298836,-1109.539817,0.00095,120]
[343021578,1732288298846,-179.979426,0.00095,120]
[343021579,1732288298855,-179.979422,0.00095,120]
[343021580,1732288298865,-5080.4091788,0.00095005,15]
[343021581,1732288298874,-5797.1541736,0.00095005,15]
[343021582,1732288298884,-16036.8153615,0.00095005,15]
[343021583,1732288298896,-156.8457255,0.00095005,15]
[343021584,1732288298905,-446.5073761,0.00095005,15]
[343021585,1732288298915,-889.2908288,0.00095005,15]
[343021586,1732288298925,-279.0,0.0009507,120]
[343021587,1732288298934,-500.0,0.00095075,120]
[343021588,1732288298944,-150.0,0.00095082,120]
[343021589,1732288298954,-150.0,0.00095082,120]
[343021590,1732288298963,-699.83846591,0.000951,83]
[343021591,1732288298972,-3000.0,0.00095125,120]
[343021592,1732288298982,-500.0,0.00095212,120]
[343021593,1732288298992,-398.61129943,0.0009522,120]
[343021594,1732288299001,-3000.0,0.0009525,120]
[343021595,1732288299011,-500.0,0.00095334,120]
[343021596,1732288299020,-500.0,0.00095334,20]
[343021597,1732288299030,-530.22,0.00095334,120]
[343021598,1732288299044,-500.0,0.00095334,120]
[343021599,1732288299054,-193.04787997,0.00095334,120]
[343021600,1732288299063,-500.0,0.00095349,120]
[343021601,1732288299072,-3000.0,0.00095375,120]
[343021602,1732288299082,-500.0,0.00095389,120]
[343021603,1732288299091,-500.0,0.00095389,120]
[343021604,1732288299100,-409.57631477,0.00095389,120]
[343021605,1732288299111,-500.0,0.00095389,120]
[343021606,1732288299122,-500.0,0.00095389,120]
[343021607,1732288299132,-500.0,0.00095389,120]
[343021608,1732288299144,-500.0,0.00095389,120]
[343021609,1732288299155,-500.0,0.00095389,120]
[343021610,1732288299165,-500.0,0.00095389,120]
[343021611,1732288299175,-576.66,0.00095389,120]
[343021612,1732288299185,-500.0,0.00095389,120]
[343021613,1732288299313,-500.0,0.00095389,120]
[343021614,1732288299324,-500.0,0.00095389,120]
[343021615,1732288299334,-500.0,0.00095389,120]
[343021616,1732288299345,-630.15,0.00095389,120]
[343021617,1732288299355,-500.0,0.00095389,120]
[343021618,1732288299365,-500.0,0.00095389,120]
[343021619,1732288299375,-500.0,0.00095389,120]
[343021620,1732288299386,-500.0,0.00095389,120]
[343021621,1732288299399,-500.0,0.00095389,120]
[343021622,1732288299409,-500.0,0.00095389,120]
[343021623,1732288299420,-500.0,0.00095389,120]
[343021624,1732288299431,-633.38,0.00095389,120]
[343021625,1732288299441,-500.0,0.00095389,120]
[343021626,1732288299451,-500.0,0.00095389,120]
[343021627,1732288299461,-500.0,0.00095389,120]
[343021628,1732288299471,-500.0,0.00095389,120]
[343021629,1732288299481,-500.0,0.00095389,120]
[343021630,1732288299491,-500.0,0.00095389,120]
[343021631,1732288299500,-500.0,0.00095399,120]
[343021632,1732288299510,-666.12,0.00095399,120]
[343021633,1732288299520,-50000.0,0.000954,120]
[343021634,1732288299529,-232.75989587,0.00095456,15]
[343021635,1732288299539,-150.0,0.00095474,120]
[343021636,1732288299548,-3000.0,0.000955,120]
[343021637,1732288299558,-3000.0,0.00095625,120]
[343021638,1732288299567,-5646.14824406,0.000957,120]
[343021639,1732288299577,-1882.47035,0.000957,120]
[343021640,1732288299587,-3739.82554271,0.00095733,15]
[343021641,1732288299596,-3000.0,0.0009575,120]
[343021642,1732288299605,-515.50449024,0.0009577,120]
[343021643,1732288299614,-500.0,0.0009577,120]
[343021644,1732288299624,-500.0,0.0009577,120]
[343021645,1732288299636,-500.0,0.0009577,120]
[343021646,1732288299650,-500.0,0.0009577,120]
[343021647,1732288299660,-500.0,0.0009577,120]
[343021648,1732288299670,-500.0,0.0009577,120]
[343021649,1732288299679,-500.0,0.0009577,120]
[343021650,1732288299689,-576.66,0.0009577,120]
[343021651,1732288299699,-500.0,0.0009577,120]
[343021652,1732288299712,-500.0,0.0009577,120]
[343021653,1732288299727,-500.0,0.0009577,120]
[343021654,1732288299737,-500.0,0.0009577,120]
[343021655,1732288299746,-630.15,0.0009577,120]
[343021656,1732288299756,-500.0,0.0009577,120]
[343021657,1732288299766,-500.0,0.0009577,120]
[343021658,1732288299775,-500.0,0.0009577,120]
[343021659,1732288299785,-500.0,0.0009577,120]
[343021660,1732288299794,-500.0,0.0009577,120]
[343021661,1732288299804,-500.0,0.0009577,120]
[343021662,1732288299814,-500.0,0.0009577,120]
[343021663,1732288299825,-500.0,0.0009577,120]
[343021664,1732288299835,-500.0,0.0009577,120]
[343021665,1732288299844,-500.0,0.0009577,120]
[343021666,1732288299854,-500.0,0.0009577,120]
[343021667,1732288299864,-500.0,0.0009577,120]
[343021668,1732288299875,-500.0,0.00095779,120]
[343021669,1732288299885,-500.0,0.00095779,20]
[343021670,1732288299900,-530.22,0.00095779,120]
[343021671,1732288299910,-603.59966674,0.00095779,120]
[343021672,1732288299919,-500.0,0.00095798,120]
[343021673,1732288299929,-186.06,0.00095798,120]
[343021674,1732288299939,-500.0,0.00095798,120]
[343021675,1732288299948,-453.81,0.00095798,120]
[343021676,1732288299958,-500.0,0.00095798,20]
[343021677,1732288299968,-500.0,0.00095798,20]
[343021678,1732288299977,-429.66356604,0.00095798,20]
[343021679,1732288299987,-530.22,0.00095798,120]
[343021680,1732288299996,-530.22,0.00095798,120]
[343021681,1732288300006,-530.22,0.00095798,120]
[343021682,1732288300016,-530.22,0.00095798,120]
[343021683,1732288300027,-666.12,0.00095798,120]
[343021684,1732288300037,-666.12,0.00095798,120]
[343021685,1732288300047,-666.12,0.00095798,120]
[343021686,1732288300057,-666.12,0.00095798,120]
[343021687,1732288300066,-409.87278759,0.00095799,120]
[343021688,1732288300077,-500.0,0.00095799,120]
[343021689,1732288300087,-500.0,0.00095799,120]
[343021690,1732288300097,-500.0,0.00095799,120]
[343021691,1732288300106,-500.0,0.00095799,120]
[343021692,1732288300117,-500.0,0.00095799,120]
[343021693,1732288300126,-500.0,0.00095799,120]
[343021694,1732288300135,-500.0,0.00095799,120]
[343021695,1732288300147,-500.0,0.00095799,120]
[343021696,1732288300157,-500.0,0.00095799,120]
[343021697,1732288300166,-500.0,0.00095799,120]
[343021698,1732288300176,-488.13744194,0.00095799,120]
[343021699,1732288300185,-576.66,0.00095799,120]
[343021700,1732288300195,-576.66,0.00095799,120]
[343021701,1732288300205,-576.66,0.00095799,120]
[343021702,1732288300215,-576.66,0.00095799,120]
[343021703,1732288300224,-576.66,0.00095799,120]
[343021704,1732288300235,-576.66,0.00095799,120]
[343021705,1732288300245,-576.66,0.00095799,120]
[343021706,1732288300255,-576.66,0.00095799,120]
[343021707,1732288300265,-576.66,0.00095799,120]
[343021708,1732288300275,-576.66,0.00095799,120]
[343021709,1732288300284,-500.0,0.00095799,120]
[343021710,1732288300294,-500.0,0.00095799,120]
[343021711,1732288300304,-405.92,0.00095799,120]
[343021712,1732288300314,-530.22,0.00095799,120]
[343021713,1732288300323,-500.0,0.00095799,120]
[343021714,1732288300333,-397.04374192,0.00095799,120]
[343021715,1732288300343,-630.15,0.00095799,120]
[343021716,1732288300353,-630.15,0.00095799,120]
[343021717,1732288300363,-630.15,0.00095799,120]
[343021718,1732288300374,-630.15,0.00095799,120]
[343021719,1732288300385,-630.15,0.00095799,120]
[343021720,1732288300399,-630.15,0.00095799,120]
[343021721,1732288300409,-630.15,0.00095799,120]
[343021722,1732288300419,-630.15,0.00095799,120]
[343021723,1732288300429,-630.15,0.00095799,120]
[343021724,1732288300439,-630.15,0.00095799,120]
[343021725,1732288300449,-585.36,0.00095799,120]
[343021726,1732288300459,-666.12,0.00095799,120]
[343021727,1732288300469,-666.12,0.00095799,120]
[343021728,1732288300478,-666.12,0.00095799,120]
[343021729,1732288300488,-666.12,0.00095799,120]
[343021730,1732288300497,-666.12,0.00095799,120]
[343021731,1732288300507,-666.12,0.00095799,120]
[343021732,1732288300517,-666.12,0.00095799,120]